Cogmind - Beta 9.2 @@@ ROGUE MODE // 2019.12.27 @ 00:36:05 Player: Fleshy Vegetable Bird Result: Escaped! Performance ------------- Evolutions (9) 4500 Regions Visited (28) 5600 Robots Destroyed (129) 645 Value Destroyed (4242) 4242 Prototype IDs (115) 2300 Alien Tech Used (2) 400 Bonus (11557) 11557 TOTAL SCORE: 29244 Bonus ------- High Alert Combat Kills 575 Follower Combat Kills 5758 Network Hubs Disabled 200 Met Imprinter 300 Was Imprinted 300 Met Zhirov 300 Built Enhanced Grunts 300 A7 Reached Mainframe 300 Met R17 at Cetus 500 Destroyed MAIN.C Guards 500 Win 3000 Friendly Fire -476 Cogmind --------- Core Integrity 1012/1600 Matter 507/800 Energy 1277/1280 System Corruption 9% Temperature Cool (2) Movement Flying (112) Ox1 Location To Epsilon Eridani Parts ------- > --- POWER (2) -------- Light Quantum Reactor Light Quantum Reactor > --- PROPULSION (7) --- Diametric Drive Q-thruster > --- UTILITY (14) ----- Advanced Cryofiber Web Experimental Cooling System Experimental Coolant Injector Experimental Energy Well Experimental Matter Compressor Dimensional Manipulator Advanced Targeting Computer Experimental Targeting Computer Experimental Target Analyzer Thermal Barrier AEGIS Remote Shield > --- WEAPON (2) ------- Graviton Cannon Graviton Cannon > --- INVENTORY (4) ---- Zionite Laser-M Zionite Laser-H Peak State ------------ > --- POWER ------------ Quantum Reactor Light Quantum Reactor > --- PROPULSION ------- Impulse Thruster Diametric Drive Diametric Drive Q-thruster Q-thruster Improved Q-thruster > --- UTILITY ---------- Advanced Cryofiber Web Experimental Cooling System Experimental Coolant Injector Experimental Energy Well Experimental Matter Compressor Dimensional Manipulator Advanced Targeting Computer Experimental Targeting Computer Experimental Target Analyzer Advanced Phase Shifter Zionite Weapon Casing Thermal Barrier EM Disruption Field AEGIS Remote Shield > --- WEAPON ----------- Graviton Cannon Graviton Cannon > --- INVENTORY -------- Light Quantum Reactor Zionite Laser-M Zionite Laser-H [Rating: 202] Favorites ----------- Power Light Ion Engine Engine Light Ion Engine Power Core Micro Nuclear Core Reactor Antimatter Reactor Propulsion Wheel Leg Makeshift Leg Wheel Wheel Hover Unit Cooled Gravmag System Flight Unit Improved VTOL Module Utility Large Storage Unit Device Advanced ECM Suite Storage Large Storage Unit Processor Experimental Signal Interpreter Hackware Advanced Hacking Suite Protection Zionite Weapon Casing Weapon Lightning Gun Energy Gun Lightning Gun Energy Cannon Enhanced Nova Cannon Ballistic Gun Heavy Assault Rifle Ballistic Cannon Graviton Cannon Launcher Missile Launcher Impact Weapon Heavy Hammer Slashing Weapon Phasing Sabre Build | -11 -10 -10 -9 -9 -8 -7 -7 -7 -7 -7 -6 -6 -6 -6 -6 -6 -5 -5 -5 -4 -4 -4 -4 -3 -3 -2 -1 -1 ------- Run | Scr Mat Min Mat Min Mat Fac Was Fac Low Zio Pro Fac Ext Cet Arc Hub Fac Was Fac Fac Upp Upp Zhi Pro Res Res Acc Com Slots Evolved 18 | . . . 2 . 2 2 . . . . . 2 . . . . 2 . . 2 . . . . 2 2 2 . Power 1 | . . . . . . . . . . . . 1 . . . . . . . . . . . . . . . . Propulsion 5 | . . . 1 . . 1 . . . . . 1 . . . . 1 . . . . . . . . 1 . . Utility 12 | . . . 1 . 2 1 . . . . . . . . . . 1 . . 2 . . . . 2 1 2 . Weapon . | . . . . . . . . . . . . . . . . . . . . . . . . . . . . . Parts Attached 303 | 6 5 3 17 7 27 6 4 8 3 4 10 4 21 21 3 3 8 2 3 24 5 4 12 1 9 4 26 53 Power 42 | 1 1 . 3 1 1 1 1 . . . 1 1 2 2 . . 2 . 1 8 . . 2 . 1 1 4 8 Engine 10 | 1 1 . 3 1 1 1 . . . . . . . 2 . . . . . . . . . . . . . . Core 8 | . . . . . . . . . . . 1 1 1 . . . 1 . . 4 . . . . . . . . Reactor 24 | . . . . . . . 1 . . . . . 1 . . . 1 . 1 4 . . 2 . 1 1 4 8 Propulsion 82 | 2 1 2 4 1 10 1 . 2 . 1 4 1 3 5 . 2 4 2 . 3 . 2 4 . 2 2 13 11 Treads . | . . . . . . . . . . . . . . . . . . . . . . . . . . . . . Leg 2 | . . . . . . . . . . 1 . . . . . . . . . . . 1 . . . . . . Wheel 28 | 2 1 2 4 1 8 1 . 2 . . . . . 5 . . . 1 . 1 . . . . . . . . Hover 6 | . . . . . 1 . . . . . . . . . . . . . . . . . 3 . 2 . . . Flight 46 | . . . . . 1 . . . . . 4 1 3 . . 2 4 1 . 2 . 1 1 . . 2 13 11 Utility 103 | 2 2 . 3 . 4 3 2 3 . 3 4 2 8 9 1 1 2 . 2 8 2 1 5 1 6 1 5 23 Device 44 | . . . . . . . . . . . 1 2 1 5 1 1 1 . 2 5 . . 3 . 6 . 2 14 Storage 13 | 2 2 . . . 3 . . 1 . . 1 . 1 . . . . . . . . . . . . . . 3 Processor 17 | . . . . . . 1 . . . 2 1 . 3 1 . . . . . 1 . 1 . . . . 2 5 Hackware 10 | . . . . . . . 1 2 . 1 . . . 1 . . . . . 2 1 . 1 1 . . . . Protection 19 | . . . 3 . 1 2 1 . . . 1 . 3 2 . . 1 . . . 1 . 1 . . 1 1 1 Artifact . | . . . . . . . . . . . . . . . . . . . . . . . . . . . . . Weapon 76 | 1 1 1 7 5 12 1 1 3 3 . 1 . 8 5 2 . . . . 5 3 1 1 . . . 4 11 Energy Gun 35 | 1 1 . . . 10 1 1 . 1 . . . 4 3 1 . . . . 3 1 . . . . . 2 6 Energy Cannon 3 | . . . . . . . . . . . . . . . . . . . . . 1 . . . . . . 2 Ballistic Gun 15 | . . . 6 4 1 . . 3 . . . . 1 . . . . . . . . . . . . . . . Ballistic Cannon 4 | . . . . . . . . . . . . . . . . . . . . . . . . . . . 1 3 Launcher 4 | . . 1 1 . . . . . 2 . . . . . . . . . . . . . . . . . . . Special Weapon . | . . . . . . . . . . . . . . . . . . . . . . . . . . . . . Impact Weapon 1 | . . . . 1 . . . . . . . . . . . . . . . . . . . . . . . . Slashing Weapon 14 | . . . . . 1 . . . . . 1 . 3 2 1 . . . . 2 1 1 1 . . . 1 . Piercing Weapon . | . . . . . . . . . . . . . . . . . . . . . . . . . . . . . Special Melee Weapon . | . . . . . . . . . . . . . . . . . . . . . . . . . . . . . Unidentified Prototypes 43 | . . . 1 . 5 . . . . . . 1 8 3 . 1 1 . . 3 1 . 5 . 1 1 2 10 Parts Lost 95 | . . 1 2 1 5 2 . 3 2 . 2 . 3 11 . 1 5 . 1 9 6 . . 2 1 . 12 26 Power 10 | . . . . . . 1 . . . . . . . 2 . 1 1 . . 1 . . . 1 . . 1 2 Propulsion 36 | . . . 1 . 2 . . 2 1 . 2 . . 3 . . 3 . 1 3 2 . . . 1 . 3 12 Utility 37 | . . . . 1 1 . . 1 . . . . 3 4 . . 1 . . 4 4 . . 1 . . 6 11 Weapon 12 | . . 1 1 . 2 1 . . 1 . . . . 2 . . . . . 1 . . . . . . 2 1 Highest Loss Streak 8 | . . 1 1 1 4 2 . 3 2 . 2 . 1 6 . 1 4 . 1 2 3 . . 1 1 . 7 8 Average Slot Usage (%) 88 | . 84 97 95 94 85 81 95 94 96 99 94 91 96 76 96 99 91 76 88 85 59 36 63 77 90 79 84 82 Engine 4 | . 13 14 10 11 9 6 3 . . . . . . 3 13 12 4 . . . . . . . . . . . Core 1 | . . . . . . . . . . . 3 12 13 4 . . 2 . . 2 6 . . . . . . . Reactor 3 | . . . . . . . 3 7 7 7 3 . . . . . . 5 8 5 . . 6 6 7 4 7 7 Wheel 17 | . 27 28 32 33 26 30 30 26 26 23 7 . . 5 26 26 21 5 11 8 6 5 3 . . . . . Flight 8 | . . . . . . . . . . . 18 32 33 20 6 6 10 23 23 15 5 4 5 5 4 11 22 20 Device 6 | . . . . . . . . . . . 3 6 1 10 20 20 18 17 20 23 9 . 7 10 21 26 22 19 Storage 15 | . 28 28 22 22 26 23 23 23 23 23 15 6 11 8 . . . . . . . . . . . . . 3 Processor 5 | . . . . . . 1 4 . . 3 18 20 13 6 6 6 5 5 5 8 5 9 10 10 8 4 10 15 Hackware 5 | . . . . . . . 2 13 15 12 3 . . 2 6 6 5 5 5 7 12 10 12 13 14 13 9 2 Protection 5 | . . . 8 7 5 4 14 7 7 5 3 6 11 3 6 6 8 5 5 2 5 . 2 5 4 7 7 5 Energy Gun 5 | . 13 13 . . 12 14 10 2 6 7 3 . 6 3 5 6 4 . . 1 2 . . . . . 1 3 Ballistic Gun 3 | . . . 20 18 4 . . 12 . . . . . . . . . . . . . . . . . . . . Launcher 1 | . . 12 1 . . . . . 6 7 3 . . . . . . . . . . . . . . . . . Slashing Weapon 1 | . . . . . . . . . . . 3 6 4 5 4 6 5 5 5 6 3 4 5 10 9 8 4 . Naked Turns . | . . . . . . . . . . . . . . . . . . . . . . . . . . . . . Heaviest Build 102 | 13 37 41 45 46 99 87 102 95 102 97 90 28 33 34 38 38 50 20 32 33 25 3 37 37 43 46 51 88 Greatest Support 89 | 20 20 20 34 34 34 42 42 54 54 38 38 44 36 48 48 48 48 21 40 44 44 3 51 75 84 84 73 89 Greatest Overweight (x) 8 | . 3 2 2 1 3 2 2 4 2 2 8 . 1 1 . . 1 . . 1 1 . 2 . . 2 . 2 Average Overweight (x) . | . . 1 1 1 2 1 1 1 1 2 . . . . . . . . . . . . . . . . . . Largest Inventory Capacity 24 | 8 16 16 16 16 24 24 24 24 24 24 24 8 8 8 4 4 4 4 4 4 4 4 4 4 4 4 4 4 Average Capacity 13 | 6 15 16 16 16 23 24 24 24 24 24 16 8 8 6 4 4 4 4 4 4 4 4 4 4 4 4 4 4 Most Carried 24 | 6 16 16 16 16 24 23 24 24 24 24 24 8 8 8 4 4 4 4 4 4 4 4 4 4 4 4 4 4 Average Carried 12 | 3 11 15 14 15 21 22 23 23 23 23 15 7 7 5 3 3 3 2 3 3 2 3 2 3 3 3 3 3 Final Capacity 24 | 8 16 16 16 16 24 24 24 24 24 24 8 8 8 4 4 4 4 4 4 4 4 4 4 4 4 4 4 4 Final Carried 24 | 5 15 15 16 16 24 22 24 24 23 24 7 8 7 4 3 4 3 3 4 4 4 4 3 3 3 4 4 2 Class Distribution -------------------- 31% | Messiah-Mutant 22% | Mutant 20% | Hauler-Mutant 18% | Messiah-Sprinter 6% | Scavenger-Mutant Dominant Class ---------------- Mutant | -10/Materials Mutant | -10/Mines Mutant | -9/Materials Mutant | -9/Mines Hauler-Mutant | -8/Materials Hauler-Mutant | -7/Factory Scavenger-Mutant | -7/Waste Scavenger-Mutant | -7/Factory Hauler-Mutant | -7/Lower Caves Messiah-Mutant | -7/Zion Messiah-Mutant | -6/Proximity Caves Messiah-Sprinter | -6/Factory Messiah-Sprinter | -6/Extension Messiah-Mutant | -6/Cetus Messiah-Mutant | -6/Archives Messiah-Mutant | -6/Hub_04(d) Messiah-Mutant | -5/Factory Messiah-Mutant | -5/Waste Messiah-Mutant | -5/Factory Messiah-Mutant | -4/Factory Messiah-Mutant | -4/Upper Caves Messiah-Mutant | -4/Upper Caves Messiah-Mutant | -4/Zhirov Messiah-Mutant | -3/Proximity Caves Messiah-Mutant | -3/Research Messiah-Sprinter | -2/Research Messiah-Sprinter | -1/Access Messiah-Mutant | -1/Command Resources | -11 -10 -10 -9 -9 -8 -7 -7 -7 -7 -7 -6 -6 -6 -6 -6 -6 -5 -5 -5 -4 -4 -4 -4 -3 -3 -2 -1 -1 ----------- Run | Scr Mat Min Mat Min Mat Fac Was Fac Low Zio Pro Fac Ext Cet Arc Hub Fac Was Fac Fac Upp Upp Zhi Pro Res Res Acc Com Matter Collected 4660 | 260 50 74 395 119 488 50 50 188 216 40 103 16 199 210 36 30 16 . . 302 41 35 150 19 . 87 332 1154 Remotely . | . . . . . . . . . . . . . . . . . . . . . . . . . . . . . Salvage Created 5574 | 97 60 104 601 136 1122 132 . 387 190 . . 16 695 175 70 120 125 . . 112 198 . 359 . 39 87 232 517 Parts 290 | 8 4 17 40 13 73 8 . 20 12 . . 2 23 5 2 2 6 . . 6 6 . 2 . 3 1 13 24 Haulers Intercepted 15 | . 1 . 2 . 6 1 . . . . . . 2 . . 1 . . . . . . . . . 1 1 . Recyclers Shooed 5 | . . . 2 . . . . 1 . . . . . . . 1 1 . . . . . . . . . . . Parts Field Recycled . | . . . . . . . . . . . . . . . . . . . . . . . . . . . . . Retrieved Matter . | . . . . . . . . . . . . . . . . . . . . . . . . . . . . . Parts Self-Destructed 25 | . . . . . . . . . 7 2 10 . . . . . . . . . 4 . 2 . . . . . Prevented 4 | . . . . . . . . . . . 3 . . . . . . . . . . 1 . . . . . . Kills | -11 -10 -10 -9 -9 -8 -7 -7 -7 -7 -7 -6 -6 -6 -6 -6 -6 -5 -5 -5 -4 -4 -4 -4 -3 -3 -2 -1 -1 ------- Run | Scr Mat Min Mat Min Mat Fac Was Fac Low Zio Pro Fac Ext Cet Arc Hub Fac Was Fac Fac Upp Upp Zhi Pro Res Res Acc Com Combat Hostiles Destroyed 80 | . . 7 12 5 17 1 . 4 10 . . . 3 3 1 . 2 . . 2 4 . . . . . 2 7 Melee 5 | . . . . 2 . . . . . . . . 1 . . . . . . 1 . . . . . . 1 . Guns 52 | . . 1 8 3 17 . . 4 1 . . . 2 3 1 . 2 . . . 4 . . . . . 1 5 Cannons 2 | . . . . . . . . . . . . . . . . . . . . . . . . . . . . 2 AOE 18 | . . 6 4 . . . . . 8 . . . . . . . . . . . . . . . . . . . Classes Destroyed 17 | 2 1 3 5 1 1 . . . 1 . . . 1 . . . . . . . . . . . . . . 2 Worker 11 | . . 2 2 2 1 . . . . . . . 2 . . . . . . . . . . . . . . 2 Builder 2 | . . 1 . . . . . 1 . . . . . . . . . . . . . . . . . . . . Tunneler 3 | 1 . . . 1 1 . . . . . . . . . . . . . . . . . . . . . . . Hauler 15 | . 1 . 2 . 6 1 . . . . . . 2 . . 1 . . . . . . . . . 1 1 . Recycler 4 | 1 . . . . . . . 2 . . . . 1 . . . . . . . . . . . . . . . Operator 6 | . . . 2 . 1 . . 1 . . . 1 1 . . . . . . . . . . . . . . . Watcher 6 | . . . 1 . 2 . . . . . . . 1 . . . . . . . . . . . 1 . 1 . Swarmer 30 | . . 7 4 3 7 . . . 4 . . . . . . . . . . 1 2 . . . . . 2 . Grunt 21 | . . . 5 . 2 . . 3 5 . . . 2 . . . 2 . . . 2 . . . . . . . Brawler 1 | . . . 1 . . . . . . . . . . . . . . . . . . . . . . . . . Duelist 2 | . . . . . . . . . 1 . . . 1 . . . . . . . . . . . . . . . Sentry 13 | . . . 3 . 6 1 . . . . . . . . 1 . . . . 1 . . . . . . . 1 Hunter 5 | . . . . . 2 . . 1 . . . . . . . . . . . . . . . . . . . 2 Programmer 2 | . . . . . . . . . . . . . . 1 . . . . . . . . . . . . . 1 Cetus Guard 2 | . . . . . . . . . . . . . . 2 . . . . . . . . . . . . . . Combat Programmer 1 | . . . . . . . . . . . . . . . . . . . . . . . . . . . . 1 Executioner 1 | . . . . . . . . . . . . . . . . . . . . . . . . . . . . 1 Alpha 7 1 | . . . . . . . . . . . . . . . . . . . . . . . . . . . . 1 Assembled 2 | . . . . 2 . . . . . . . . . . . . . . . . . . . . . . . . Wizard 1 | . . . . . . . . . . . . . 1 . . . . . . . . . . . . . . . Best Kill Streak 4 | 1 1 4 4 3 3 1 . 2 4 . . 1 4 2 1 1 2 . . 1 4 . . . 1 1 1 3 Combat Bots Only 4 | . . 3 4 3 3 1 . 2 4 . . . 2 2 1 . 2 . . 1 4 . . . . . 1 3 Max Kills in Single Turn 3 | 1 1 2 3 1 1 1 . 1 2 . . 1 1 1 1 1 1 . . 1 1 . . . 1 1 1 1 Gunslinging . | . . . . . . . . . . . . . . . . . . . . . . . . . . . . . Exploded 3 | . . 2 3 . . . . . 2 . . . . . . . . . . . . . . . . . . . Melee 1 | . . . . 1 . . . . . . . . 1 . . . . . . 1 . . . . . . 1 . Uniques/NPCs Destroyed . | . . . . . . . . . . . . . . . . . . . . . . . . . . . . . Combat | -11 -10 -10 -9 -9 -8 -7 -7 -7 -7 -7 -6 -6 -6 -6 -6 -6 -5 -5 -5 -4 -4 -4 -4 -3 -3 -2 -1 -1 -------- Run | Scr Mat Min Mat Min Mat Fac Was Fac Low Zio Pro Fac Ext Cet Arc Hub Fac Was Fac Fac Upp Upp Zhi Pro Res Res Acc Com Damage Taken 10844 | . 39 191 450 229 1254 195 . 394 199 . 318 71 361 702 192 192 766 . 48 722 725 20 . 322 . 48 1173 2233 Core 1613 | . . 18 74 35 102 10 . . 39 . 65 13 111 70 . . 145 . . 176 232 . . 41 . . 146 336 Absorbed by Shields 731 | . . . . . . . . . . . . . 170 132 . . . . . . . . . . . . . 429 Core Remaining (%) 83 | 100 . 92 . 72 81 . . . . . 83 . . . . 77 . . 85 . . . . 60 100 100 . 63 Volleys Fired 432 | 6 6 15 53 18 101 7 . 29 17 . 6 . 28 13 5 4 17 . . . 18 . . . . . 7 82 Largest 2 | 1 1 1 2 2 2 2 . 2 1 . 1 . 2 2 1 1 1 . . . 1 . . . . . 2 2 Hottest 321 | 40 40 40 43 46 120 100 . 110 55 . 55 . 120 321 240 240 240 . . . 73 . . . . . 153 193 Shots Fired 728 | 6 6 15 99 36 193 13 . 57 17 . 6 . 50 24 5 4 17 . . . 20 . . . . . 12 148 Gun 637 | 6 6 11 97 36 193 13 . 57 8 . 5 . 50 24 5 4 17 . . . 20 . . . . . 10 75 Cannon 75 | . . . . . . . . . . . . . . . . . . . . . . . . . . . 2 73 Launcher 16 | . . 4 2 . . . . . 9 . 1 . . . . . . . . . . . . . . . . . Special . | . . . . . . . . . . . . . . . . . . . . . . . . . . . . . Kinetic 308 | . . . 97 36 72 . . 43 . . . . . . . . . . . . . . . . . . 2 58 Thermal 204 | . . . . . 18 2 . 9 . . . . 23 18 5 4 17 . . . 20 . . . . . 10 78 Explosive 16 | . . 4 2 . . . . . 9 . 1 . . . . . . . . . . . . . . . . . Electromagnetic 155 | 6 6 11 . . 103 11 . 5 8 . 5 . . . . . . . . . . . . . . . . . Phasic 45 | . . . . . . . . . . . . . 27 6 . . . . . . . . . . . . . 12 Robot Hit Streak 21 | 4 7 3 8 7 17 11 . 5 13 . 2 . 9 10 3 3 5 . . . 4 . . . . . 3 21 Robot Miss Streak 8 | 1 . 3 3 2 8 4 . 6 2 . 1 . 5 2 1 1 2 . . . 2 . . . . . 2 2 Penetration Max 1 | . . . . . . . . 1 . . . . . . . . . . . . . . . . . . . . Secondary Targets 6 | . . . . . 2 . . 1 . . . . 1 1 . . . . . . . . . . . . . 1 Max Gunslinging Chain 1 | . . . . . 1 . . 1 . . . . 1 1 . . . . . . . . . . . . . 1 Shots Hit Robots 530 | 5 6 6 68 24 126 9 . 27 14 . 4 1 35 25 4 10 11 . 2 9 12 . 9 . 1 4 15 103 Core Hits 226 | 3 2 10 32 9 46 6 . 14 16 . 5 1 16 12 1 2 4 . . 1 7 . 4 . 1 1 4 29 Critical Hits 6 | . . . 1 . . . . 1 . . . . . . . . . . . . . . 1 . . . . 3 Critical Kills 1 | . . . . . . . . 1 . . . . . . . . . . . . . . . . . . . . Critical Parts Destroyed 2 | . . . . . . . . . . . . . . . . . . . . . . . . . . . . 2 Melee Attacks 220 | . . . . 33 2 . . . . . 3 13 45 13 . 14 . . 10 20 . . 9 9 10 13 26 . Impact 33 | . . . . 33 . . . . . . . . . . . . . . . . . . . . . . . . Slashing 187 | . . . . . 2 . . . . . 3 13 45 13 . 14 . . 10 20 . . 9 9 10 13 26 . Piercing . | . . . . . . . . . . . . . . . . . . . . . . . . . . . . . Sneak Attacks 9 | . . . . . . . . . . . . 1 3 . . . . . . . . . . . . 3 2 . Combat Hostiles 2 | . . . . . . . . . . . . . 1 . . . . . . . . . . . . . 1 . Follow-up Attacks 3 | . . . . . . . . . . . . . . . . . . . . 1 . . . . . 1 1 . Damage Inflicted 18278 | 64 102 501 1028 301 2168 138 . 639 1483 . 176 187 1788 885 127 445 468 . 119 350 509 . 958 . 46 455 886 4455 Guns 9616 | 64 102 78 764 196 2019 138 . 639 158 . 68 . 1186 653 127 162 468 . . . 509 . . . . . 107 2178 Cannons 2277 | . . . . . . . . . . . . . . . . . . . . . . . . . . . . 2277 Explosions 2266 | . . 421 264 . 148 . . . 1325 . 108 . . . . . . . . . . . . . . . . . Melee 4116 | . . . . 105 . . . . . . . 187 602 232 . 283 . . 119 350 . . 958 . 46 455 779 . Ramming 3 | . . 2 . . 1 . . . . . . . . . . . . . . . . . . . . . . . Kinetic 4285 | . . . 764 196 821 . . 472 . . . . . . . . . . . . . . . . . . . 2032 Thermal 4672 | . . . . . 215 . . 98 . . . . 559 488 127 162 468 . . . 509 . . . . . 107 1939 Explosive 2118 | . . 421 264 . . . . . 1325 . 108 . . . . . . . . . . . . . . . . . Electromagnetic 1808 | 64 102 78 . . 1131 138 . 69 158 . 68 . . . . . . . . . . . . . . . . . Impact 105 | . . . . 105 . . . . . . . . . . . . . . . . . . . . . . . . Slashing 4011 | . . . . . . . . . . . . 187 602 232 . 283 . . 119 350 . . 958 . 46 455 779 . Piercing . | . . . . . . . . . . . . . . . . . . . . . . . . . . . . . Phasic 1276 | . . . . . . . . . . . . . 627 165 . . . . . . . . . . . . . 484 Highest Corruption 11 | . . . . . . . . 2 2 2 . . . 10 10 11 . . . 8 8 8 8 10 . . . 9 Average Corruption 5 | . . . . . . . . 2 2 2 . . . 9 10 10 . . . 4 8 8 8 8 . . . 6 Corruption Purged . | . . . . . . . . . . . . . . . . . . . . . . . . . . . . . Effects 119 | . . . . . . . . 5 3 1 . . . 2 7 12 . . . 7 11 6 4 11 . . . 50 Message Errors 19 | . . . . . . . . . 1 . . . . 1 1 2 . . . 1 2 . . 3 . . . 8 Matter Fused 18 | . . . . . . . . . . . . . . . 1 . . . . 2 3 2 1 1 . . . 8 Heat Flow Errors 21 | . . . . . . . . 2 1 1 . . . . 1 2 . . . 2 2 2 1 2 . . . 5 Energy Discharges 11 | . . . . . . . . 1 1 . . . . 1 1 . . . . 1 . 2 . . . . . 4 Data Loss (minor) 10 | . . . . . . . . . . . . . . . . 3 . . . . 1 . 1 2 . . . 3 Data Loss (major) 1 | . . . . . . . . . . . . . . . . . . . . . . . 1 . . . . . Misfires 6 | . . . . . . . . . . . . . . . . . . . . . 2 . . . . . . 4 Misdirections 8 | . . . . . . . . . . . . . . . 2 3 . . . . . . . 3 . . . . Targeting Errors 21 | . . . . . . . . 1 . . . . . . 1 2 . . . 1 1 . . . . . . 15 Weapon Failures 4 | . . . . . . . . 1 . . . . . . . . . . . . . . . . . . . 3 Overload Shots 9 | . . . . . . . . . . . . . . 2 2 1 4 . . . . . . . . . . . Effects 1 | . . . . . . . . . . . . . . 1 . . . . . . . . . . . . . . Energy Bleed 1 | . . . . . . . . . . . . . . 1 . . . . . . . . . . . . . . Overflow Damage 760 | . . 28 10 . 7 . . . 130 . . . 71 . . . . . 22 . . . 320 . . . 149 23 Projectiles 23 | . . . . . . . . . . . . . . . . . . . . . . . . . . . . 23 Explosions 175 | . . 28 10 . 7 . . . 130 . . . . . . . . . . . . . . . . . . . Melee 562 | . . . . . . . . . . . . . 71 . . . . . 22 . . . 320 . . . 149 . Knockbacks 6 | . . . . . . . . . . . . . . . . . . . . . . . . . . . . 6 Impact . | . . . . . . . . . . . . . . . . . . . . . . . . . . . . . Kinetic 5 | . . . . . . . . . . . . . . . . . . . . . . . . . . . . 5 Secondary 1 | . . . . . . . . . . . . . . . . . . . . . . . . . . . . 1 Self-Inflicted Damage 133 | . . 36 . . 51 . . . 46 . . . . . . . . . . . . . . . . . . . Shots 4 | . . 2 . . 1 . . . 1 . . . . . . . . . . . . . . . . . . . Rammed 2 | . . 1 . . 1 . . . . . . . . . . . . . . . . . . . . . . . Targets Rammed 2 | . . 1 . . 1 . . . . . . . . . . . . . . . . . . . . . . . Kicked . | . . . . . . . . . . . . . . . . . . . . . . . . . . . . . Crushed . | . . . . . . . . . . . . . . . . . . . . . . . . . . . . . Highest Temperature 558 | . 20 . 24 6 429 72 . 273 248 178 30 31 353 558 451 229 383 . 1 257 252 141 184 174 . . 313 444 Average Temperature 96 | . 20 . 8 4 97 39 . 117 47 97 14 12 69 148 256 83 111 . 1 69 130 80 96 78 . . 79 162 Received Heat Transfer 1431 | . 9 . 165 . 270 66 . 144 18 . 63 . 44 121 27 48 48 . 9 114 90 . . 66 . . 27 102 Effects 27 | . . . . . 3 . . 2 . . . . 6 3 2 . 1 . . . . . . . . . 1 9 Shutdowns 6 | . . . . . . . . . . . . . 1 1 1 . 1 . . . . . . . . . . 2 Energy Bleed 4 | . . . . . 1 . . . . . . . 2 1 . . . . . . . . . . . . . . Interference 12 | . . . . . 1 . . 2 . . . . 3 . . . . . . . . . . . . . 1 5 Matter Decay 2 | . . . . . . . . . . . . . . 1 1 . . . . . . . . . . . . . Short Circuit 1 | . . . . . . . . . . . . . . . . . . . . . . . . . . . . 1 Damage (minor) 2 | . . . . . 1 . . . . . . . . . . . . . . . . . . . . . . 1 Siege Activations . | . . . . . . . . . . . . . . . . . . . . . . . . . . . . . Robots Corrupted 4 | . . . . . 2 1 . . 1 . . . . . . . . . . . . . . . . . . . Combat Hostiles 2 | . . . . . . 1 . . 1 . . . . . . . . . . . . . . . . . . . Parts Fried 13 | . . . . . 9 2 . 1 1 . . . . . . . . . . . . . . . . . . . Impact Corruptions 1 | . . . . . . . . . . . . . . . . . . . . . . . . . . . . 1 Robots Melted . | . . . . . . . . . . . . . . . . . . . . . . . . . . . . . Combat Hostiles . | . . . . . . . . . . . . . . . . . . . . . . . . . . . . . Parts Melted 9 | . . . . . . . . . . . . . . 3 . . . . . . 1 . . . . . 1 4 Heat Transferred 4956 | . . . . . 230 . . 185 . . . . 703 642 161 161 483 . . . 555 . . . . . 111 1725 Parts Sabotaged . | . . . . . . . . . . . . . . . . . . . . . . . . . . . . . Parts Stolen . | . . . . . . . . . . . . . . . . . . . . . . . . . . . . . Parts Stripped . | . . . . . . . . . . . . . . . . . . . . . . . . . . . . . Power Chain Reactions 3 | . . . . . 3 . . . . . . . . . . . . . . . . . . . . . . . Missiles Intercepted . | . . . . . . . . . . . . . . . . . . . . . . . . . . . . . Alert | -11 -10 -10 -9 -9 -8 -7 -7 -7 -7 -7 -6 -6 -6 -6 -6 -6 -5 -5 -5 -4 -4 -4 -4 -3 -3 -2 -1 -1 ------- Run | Scr Mat Min Mat Min Mat Fac Was Fac Low Zio Pro Fac Ext Cet Arc Hub Fac Was Fac Fac Upp Upp Zhi Pro Res Res Acc Com Peak Influence 1736 | 10 95 238 355 204 311 135 47 82 . . . 44 1020 785 516 706 1062 385 301 577 . . . . 58 93 498 1736 Average Influence 321 | 5 46 90 245 84 162 114 47 55 . . . 36 631 609 457 505 614 373 286 343 . . . . 19 42 226 1002 Maximum Alert Level 5 | . . 1 1 1 1 . . . . . . . 3 3 2 3 3 1 1 2 . . . . . . 2 5 Low Security (%) 51 | 100 100 85 22 97 71 100 100 100 . . . 100 3 . . 6 . . . 24 . . . . 100 100 35 1 Level 1 21 | . . 14 77 2 28 . . . . . . . 21 . 27 35 23 100 100 37 . . . . . . 50 3 Level 2 12 | . . . . . . . . . . . . . 26 64 72 54 43 . . 38 . . . . . . 13 22 Level 3 9 | . . . . . . . . . . . . . 48 35 . 3 32 . . . . . . . . . . 30 Level 4 3 | . . . . . . . . . . . . . . . . . . . . . . . . . . . . 33 Level 5 . | . . . . . . . . . . . . . . . . . . . . . . . . . . . . 7 High Security . | . . . . . . . . . . . . . . . . . . . . . . . . . . . . . Max Security . | . . . . . . . . . . . . . . . . . . . . . . . . . . . . . Squads Dispatched 33 | . . . 3 . 4 . . 5 . . 1 2 3 . . 2 1 . . 2 . . . . . 2 2 6 Investigation 10 | . . . 1 . 2 . . 2 . . . 2 1 . . . . . . . . . . . . . . 2 Extermination 6 | . . . . . . . . 1 . . . . . . . . . . . 1 . . . . . . 1 3 Reinforcement 11 | . . . 2 . 1 . . 2 . . . . 1 . . 1 . . . 1 . . . . . 2 1 . Assault 3 | . . . . . . . . . . . 1 . 1 . . . . . . . . . . . . . . 1 Garrison 3 | . . . . . 1 . . . . . . . . . . 1 1 . . . . . . . . . . . Intercept . | . . . . . . . . . . . . . . . . . . . . . . . . . . . . . Construction Impeded 1 | . . . . . . . . 1 . . . . . . . . . . . . . . . . . . . . Haulers Reinforced 1 | . . . . . . . . . . . . . . . . . . . . . . . . . . 1 . . Stealth | -11 -10 -10 -9 -9 -8 -7 -7 -7 -7 -7 -6 -6 -6 -6 -6 -6 -5 -5 -5 -4 -4 -4 -4 -3 -3 -2 -1 -1 --------- Run | Scr Mat Min Mat Min Mat Fac Was Fac Low Zio Pro Fac Ext Cet Arc Hub Fac Was Fac Fac Upp Upp Zhi Pro Res Res Acc Com Distress Signals 17 | . . . 3 . 2 . . . . . . . 1 2 . 1 3 . . . . . . . . 3 1 1 Communications Jammed 49 | . . . . . . . . . . . . . . . . . . . . . . . . . . 45 4 . Distress Signals 48 | . . . . . . . . . . . . . . . . . . . . . . . . . . 45 3 . Times Spotted 366 | . 4 10 26 7 37 1 . 10 9 . 18 4 35 17 4 4 28 4 8 23 17 1 . 7 1 20 26 45 Peak Tracking Total 14 | . 3 3 4 3 5 1 . 3 4 . 7 4 6 9 2 3 7 4 7 5 8 1 . 4 1 14 6 13 Tactical Retreats 41 | . 1 . . 3 3 . . 1 1 . 1 1 2 1 . . . . 2 5 5 1 . 3 . 3 3 5 Traps | -11 -10 -10 -9 -9 -8 -7 -7 -7 -7 -7 -6 -6 -6 -6 -6 -6 -5 -5 -5 -4 -4 -4 -4 -3 -3 -2 -1 -1 ------- Run | Scr Mat Min Mat Min Mat Fac Was Fac Low Zio Pro Fac Ext Cet Arc Hub Fac Was Fac Fac Upp Upp Zhi Pro Res Res Acc Com Traps Triggered 21 | . 2 . 3 . 1 1 . 3 . . . . 1 . . . 1 . . 1 . . . . . . 2 6 Indirectly . | . . . . . . . . . . . . . . . . . . . . . . . . . . . . . Trap Hack Attempts . | . . . . . . . . . . . . . . . . . . . . . . . . . . . . . Triggered . | . . . . . . . . . . . . . . . . . . . . . . . . . . . . . Disarmed . | . . . . . . . . . . . . . . . . . . . . . . . . . . . . . Reprogrammed . | . . . . . . . . . . . . . . . . . . . . . . . . . . . . . Reused . | . . . . . . . . . . . . . . . . . . . . . . . . . . . . . Traps Extracted . | . . . . . . . . . . . . . . . . . . . . . . . . . . . . . Installed . | . . . . . . . . . . . . . . . . . . . . . . . . . . . . . Triggered 6 | . . . . . . . . . . . . . 1 . . . . . . . . 5 . . . . . . Machines | -11 -10 -10 -9 -9 -8 -7 -7 -7 -7 -7 -6 -6 -6 -6 -6 -6 -5 -5 -5 -4 -4 -4 -4 -3 -3 -2 -1 -1 ---------- Run | Scr Mat Min Mat Min Mat Fac Was Fac Low Zio Pro Fac Ext Cet Arc Hub Fac Was Fac Fac Upp Upp Zhi Pro Res Res Acc Com Machines Disabled 36 | . . . . 1 1 1 . 1 . . 1 . 9 2 1 1 6 . . 2 . . . . . . 4 6 Max in Single Turn 1 | . . . . 1 1 1 . 1 . . 1 . 1 1 . . . . . 1 . . . . . . 1 1 Garrison Access 3 | . . . . . . . . . . . . 1 . . . . . . . 1 . . . . . 1 . . Network Hub 1 | . . . . . . . . . . . . . . . . 1 . . . . . . . . . . . . Machines Sabotaged . | . . . . . . . . . . . . . . . . . . . . . . . . . . . . . Garrisons Compromised . | . . . . . . . . . . . . . . . . . . . . . . . . . . . . . Overloaded Fab Kills . | . . . . . . . . . . . . . . . . . . . . . . . . . . . . . Fab Network Shutdowns . | . . . . . . . . . . . . . . . . . . . . . . . . . . . . . Hacking | -11 -10 -10 -9 -9 -8 -7 -7 -7 -7 -7 -6 -6 -6 -6 -6 -6 -5 -5 -5 -4 -4 -4 -4 -3 -3 -2 -1 -1 --------- Run | Scr Mat Min Mat Min Mat Fac Was Fac Low Zio Pro Fac Ext Cet Arc Hub Fac Was Fac Fac Upp Upp Zhi Pro Res Res Acc Com Machines Accessed 48 | . 6 . 4 2 13 . . 5 . 1 . 2 . . 1 . 1 . 1 2 . 1 4 1 . 2 2 . Terminals 24 | . 6 . 3 1 9 . . 4 . . . . . . . . . . . . . . . 1 . . . . Fabricators 4 | . . . . . . . . 1 . . . . . . . . . . . 1 . . . . . 1 1 . Repair Stations 2 | . . . . . 1 . . . . . . . . . . . . . 1 . . . . . . . . . Recycling Units 2 | . . . 1 . 1 . . . . . . . . . . . . . . . . . . . . . . . Scanalyzers 4 | . . . . . 2 . . . . . . 1 . . . . 1 . . . . . . . . . . . Garrison Access 4 | . . . . . . . . . . . . 1 . . . . . . . 1 . . . . . 1 1 . Total Hacks 156 | . 24 . 14 2 34 . . 18 . 5 . 4 . . 9 . 4 . 2 6 . 1 17 8 . 3 5 . Successful 108 | . 13 . 8 2 25 . . 13 . 5 . 2 . . 9 . 4 . 2 2 . 1 17 3 . 1 1 . Failed 48 | . 11 . 6 . 9 . . 5 . . . 2 . . . . . . . 4 . . . 5 . 2 4 . Catastrophic 7 | . . . . . . . . 3 . . . . . . . . . . . 1 . . . 2 . . 1 . Database Lockouts . | . . . . . . . . . . . . . . . . . . . . . . . . . . . . . Manual 279 | . 21 . 14 1 25 . . 14 . . . 10 48 17 1 3 7 . 16 16 . . . 7 12 5 22 40 Terminals 85 | . 24 . 12 1 26 . . 14 . . . . . . . . . . . . . . . 8 . . . . Fabricators 14 | . . . . . . . . 4 . . . . . . . . . . . 5 . . . . . 2 3 . Repair Stations 4 | . . . . . 2 . . . . . . . . . . . . . 2 . . . . . . . . . Recycling Units 3 | . . . 2 . 1 . . . . . . . . . . . . . . . . . . . . . . . Scanalyzers 12 | . . . . . 5 . . . . . . 3 . . . . 4 . . . . . . . . . . . Garrison Access 5 | . . . . . . . . . . . . 1 . . . . . . . 1 . . . . . 1 2 . Terminal Hacks 52 | . 4 . 2 1 7 . . 3 . 5 . . . . 9 . . . . . . 1 17 3 . . . . Record 15 | . . . . . . . . . . . . . . . 9 . . . . . . . 5 1 . . . . Part Schematic 12 | . 2 . . . . . . . . 5 . . . . . . . . . . . . 4 1 . . . . Robot Analysis 6 | . 1 . . . 1 . . . . . . . . . . . . . . . . . 4 . . . . . Prototype ID Bank 5 | . . . . . 1 . . . . . . . . . . . . . . . . . 4 . . . . . Open Door 2 | . . . . 1 . . . . . . . . . . . . . . . . . 1 . . . . . . Level Access Points 1 | . . . . . . . . . . . . . . . . . . . . . . . . 1 . . . . Branch Access Points 1 | . . . . . . . . 1 . . . . . . . . . . . . . . . . . . . . Terminal Index 3 | . . . 1 . 1 . . 1 . . . . . . . . . . . . . . . . . . . . Scanalyzer Index 1 | . . . . . 1 . . . . . . . . . . . . . . . . . . . . . . . Recall Reinforcements 3 | . . . 1 . 1 . . 1 . . . . . . . . . . . . . . . . . . . . Hauler Manifests 3 | . 1 . . . 2 . . . . . . . . . . . . . . . . . . . . . . . Fabricator Hacks 6 | . . . . . . . . 4 . . . . . . . . . . . 1 . . . . . . 1 . Load Schematic 4 | . . . . . . . . 2 . . . . . . . . . . . 1 . . . . . . 1 . Build 2 | . . . . . . . . 2 . . . . . . . . . . . . . . . . . . . . Repair Station Hacks 4 | . . . . . 2 . . . . . . . . . . . . . 2 . . . . . . . . . Scan Component 2 | . . . . . 1 . . . . . . . . . . . . . 1 . . . . . . . . . Repair 2 | . . . . . 1 . . . . . . . . . . . . . 1 . . . . . . . . . Recycling Unit Hacks . | . . . . . . . . . . . . . . . . . . . . . . . . . . . . . Scanalyzer 10 | . . . . . 5 . . . . . . 1 . . . . 4 . . . . . . . . . . . Insert Component 5 | . . . . . 2 . . . . . . 1 . . . . 2 . . . . . . . . . . . Analyze 5 | . . . . . 3 . . . . . . . . . . . 2 . . . . . . . . . . . Garrison Access Hacks 3 | . . . . . . . . . . . . 1 . . . . . . . 1 . . . . . 1 . . Seal Access 3 | . . . . . . . . . . . . 1 . . . . . . . 1 . . . . . 1 . . Unauthorized Hacks 85 | . 23 . 16 2 30 . . 14 . . . . . . . . . . . . . . . . . . . . Terminals 31 | . 9 . 5 1 10 . . 6 . . . . . . . . . . . . . . . . . . . . Track 9 | . 3 . 1 1 3 . . 1 . . . . . . . . . . . . . . . . . . . . Botnet 18 | . 5 . 3 . 6 . . 4 . . . . . . . . . . . . . . . . . . . . Disrupt 1 | . . . . . . . . 1 . . . . . . . . . . . . . . . . . . . . Operators 3 | . 1 . 1 . 1 . . . . . . . . . . . . . . . . . . . . . . . Fabricators . | . . . . . . . . . . . . . . . . . . . . . . . . . . . . . Repair Stations . | . . . . . . . . . . . . . . . . . . . . . . . . . . . . . Recycling Units 2 | . . . 1 . 1 . . . . . . . . . . . . . . . . . . . . . . . Tunnel 2 | . . . 1 . 1 . . . . . . . . . . . . . . . . . . . . . . . Scanalyzers . | . . . . . . . . . . . . . . . . . . . . . . . . . . . . . Garrison Access . | . . . . . . . . . . . . . . . . . . . . . . . . . . . . . Data Cores Recovered . | . . . . . . . . . . . . . . . . . . . . . . . . . . . . . Used . | . . . . . . . . . . . . . . . . . . . . . . . . . . . . . Hacking Detections 30 | . 6 . 4 . 9 . . 4 . . . 1 . . . . . . 1 1 . . . 1 . 1 2 . Full Trace Events 1 | . . . . . 1 . . . . . . . . . . . . . . . . . . . . . . . Feedback Events . | . . . . . . . . . . . . . . . . . . . . . . . . . . . . . Feedback Blocked . | . . . . . . . . . . . . . . . . . . . . . . . . . . . . . Robot Schematics Acquired 17 | . . . . . . . . . . . . . 8 . . . . . . . . . . . . . . 9 Robots Built . | . . . . . . . . . . . . . . . . . . . . . . . . . . . . . Matter . | . . . . . . . . . . . . . . . . . . . . . . . . . . . . . Time . | . . . . . . . . . . . . . . . . . . . . . . . . . . . . . Total Robot Build Rating . | . . . . . . . . . . . . . . . . . . . . . . . . . . . . . Part Schematics Acquired 129 | . 2 . . . 2 . . . . 5 . . 19 13 . . 2 . 14 . . . 4 1 . . 9 58 Parts Built 2 | . . . . . . . . 2 . . . . . . . . . . . . . . . . . . . . Matter 248 | . . . . . . . . 248 . . . . . . . . . . . . . . . . . . . . Time 124 | . . . . . . . . 124 . . . . . . . . . . . . . . . . . . . . Total Part Build Rating 4 | . . . . . . . . 4 . . . . . . . . . . . . . . . . . . . . Parts Repaired 2 | . . . . . 1 . . . . . . . . . . . . . 1 . . . . . . . . . Time 51 | . . . . . 32 . . . . . . . . . . . . . 19 . . . . . . . . . Parts Recycled . | . . . . . . . . . . . . . . . . . . . . . . . . . . . . . Recycled Matter . | . . . . . . . . . . . . . . . . . . . . . . . . . . . . . Retrieved Matter . | . . . . . . . . . . . . . . . . . . . . . . . . . . . . . Retrieved Components . | . . . . . . . . . . . . . . . . . . . . . . . . . . . . . Parts Scanalyzed 5 | . . . . . 2 . . . . . . 1 . . . . 2 . . . . . . . . . . . Part Schematics Acquired 4 | . . . . . 2 . . . . . . . . . . . 2 . . . . . . . . . . . Parts Damaged 1 | . . . . . . . . . . . . . . . . . 1 . . . . . . . . . . . Bothacking | -11 -10 -10 -9 -9 -8 -7 -7 -7 -7 -7 -6 -6 -6 -6 -6 -6 -5 -5 -5 -4 -4 -4 -4 -3 -3 -2 -1 -1 ------------ Run | Scr Mat Min Mat Min Mat Fac Was Fac Low Zio Pro Fac Ext Cet Arc Hub Fac Was Fac Fac Upp Upp Zhi Pro Res Res Acc Com Used RIF Installer . | . . . . . . . . . . . . . . . . . . . . . . . . . . . . . Robots Hacked . | . . . . . . . . . . . . . . . . . . . . . . . . . . . . . Non-combat . | . . . . . . . . . . . . . . . . . . . . . . . . . . . . . Combat . | . . . . . . . . . . . . . . . . . . . . . . . . . . . . . Robot Hacks Applied . | . . . . . . . . . . . . . . . . . . . . . . . . . . . . . Relay Couplers Released . | . . . . . . . . . . . . . . . . . . . . . . . . . . . . . Robots Rewired 7 | . . . . . . . . . . . 1 . 6 . . . . . . . . . . . . . . . Allies Hacked 3 | . . . . . . . . . . . . . . . . . . . . . . . . . . . . 3 Hacks Repelled . | . . . . . . . . . . . . . . . . . . . . . . . . . . . . . Allies | -11 -10 -10 -9 -9 -8 -7 -7 -7 -7 -7 -6 -6 -6 -6 -6 -6 -5 -5 -5 -4 -4 -4 -4 -3 -3 -2 -1 -1 -------- Run | Scr Mat Min Mat Min Mat Fac Was Fac Low Zio Pro Fac Ext Cet Arc Hub Fac Was Fac Fac Upp Upp Zhi Pro Res Res Acc Com Total Allies 123 | . . 3 . . . . . . . 9 1 1 21 9 . 3 6 . 3 6 . . . . . 2 10 49 Largest Group 25 | . . 3 3 . . . . . . 9 9 1 13 9 4 7 6 . 3 4 . . . . . 2 5 25 Highest-Rated Group 2506 | . . 40 40 . . . . . . 281 281 28 605 666 376 586 360 . 210 412 . . . . . 244 586 2506 Highest-Rated Ally 268 | . . 16 16 . . . . . . 40 40 28 156 156 94 94 94 . 70 103 . . . . . 122 122 268 Zionite Dispatches 19 | . . . . . . . . . . . . 2 2 2 . 1 2 . 1 3 . . . . . 1 5 . Heavy 5 | . . . . . . . . . . . . . 1 . . . . . . 2 . . . . . 1 1 . Light 5 | . . . . . . . . . . . . . . . . 1 1 . 1 . . . . . . . 2 . Recon 2 | . . . . . . . . . . . . 1 . 1 . . . . . . . . . . . . . . Fire 1 | . . . . . . . . . . . . . . 1 . . . . . . . . . . . . . . Hacker 3 | . . . . . . . . . . . . . 1 . . . 1 . . 1 . . . . . . . . Offense Resupply 1 | . . . . . . . . . . . . 1 . . . . . . . . . . . . . . . . Infowar Resupply 1 | . . . . . . . . . . . . . . . . . . . . . . . . . . . 1 . Hacking Resupply 1 | . . . . . . . . . . . . . . . . . . . . . . . . . . . 1 . Total Orders 10 | . . . . . . . . . . . . . 1 1 . 2 . . . . . . . . . 5 1 . GOTO 4 | . . . . . . . . . . . . . . 1 . . . . . . . . . . . 3 . . DROP 2 | . . . . . . . . . . . . . 1 . . . . . . . . . . . . . 1 . EXPLORE 4 | . . . . . . . . . . . . . . . . 2 . . . . . . . . . 2 . . Ally Attacks 846 | . . 18 11 . . . . . . . 45 . 154 82 13 42 92 . 20 31 . . . . . . 32 306 Total Damage 38147 | . . 118 132 . . . . . . . 1019 . 4482 2715 570 1262 3118 . 453 1976 . . . . . . 1799 20503 Kills 181 | . . 5 2 . . . . . . . 7 . 32 12 3 13 27 . 1 9 . . . . . . 12 58 Allies Corrupted 7 | . . . . . . . . . . . . . . . . 1 . . . . . . . . . 2 . 4 Allies Melted . | . . . . . . . . . . . . . . . . . . . . . . . . . . . . . Intel | -11 -10 -10 -9 -9 -8 -7 -7 -7 -7 -7 -6 -6 -6 -6 -6 -6 -5 -5 -5 -4 -4 -4 -4 -3 -3 -2 -1 -1 ------- Run | Scr Mat Min Mat Min Mat Fac Was Fac Low Zio Pro Fac Ext Cet Arc Hub Fac Was Fac Fac Upp Upp Zhi Pro Res Res Acc Com Robot Analysis Total 6 | . 1 . . . 1 . . . . . . . . . . . . . . . . . 4 . . . . . Derelict Logs Recovered 9 | . . 1 . 2 . . . . 2 1 . . . . . . . . . . 2 1 . . . . . . Drone Launches 16 | . . . . . . . . . . . . . . . . . . . . . . . . . . 16 . . Drone Recoveries . | . . . . . . . . . . . . . . . . . . . . . . . . . . . . . Decoded 0b10 Intel 26 | . . . . . . . . . . . . 6 19 1 . . . . . . . . . . . . . . Traps 13 | . . . . . . . . . . . . 1 12 . . . . . . . . . . . . . . . Emergency Access 1 | . . . . . . . . . . . . . 1 . . . . . . . . . . . . . . . Items 8 | . . . . . . . . . . . . 5 3 . . . . . . . . . . . . . . . Machines 2 | . . . . . . . . . . . . . 2 . . . . . . . . . . . . . . . Exits 2 | . . . . . . . . . . . . . 1 1 . . . . . . . . . . . . . . Zionite Intel Received 41 | . . . . . . . . . . . . 1 12 3 . . 1 . 4 2 . . . . 3 . 3 12 Main Access 1 | . . . . . . . . . . . . . . . . . . . . . . . . . . . 1 . Emergency Access 3 | . . . . . . . . . . . . . 1 . . . . . . . . . . . 1 . . 1 Guard Positions 3 | . . . . . . . . . . . . 1 . 1 . . . . . . . . . . . . . 1 Component Stockpiles 3 | . . . . . . . . . . . . . 1 . . . . . . 1 . . . . 1 . . . Prototype Stockpiles 4 | . . . . . . . . . . . . . 1 . . . . . 1 . . . . . . . 1 1 Component Schematics 3 | . . . . . . . . . . . . . . 1 . . . . 1 . . . . . . . . 1 Prototype Schematics 7 | . . . . . . . . . . . . . 2 . . . . . . . . . . . . . 1 4 Unaware Schematics 5 | . . . . . . . . . . . . . 2 . . . . . . . . . . . . . . 3 Unaware Analyses 2 | . . . . . . . . . . . . . 2 . . . . . . . . . . . . . . . Active Terminals 6 | . . . . . . . . . . . . . 1 1 . . 1 . 1 1 . . . . 1 . . . Active Garrisons 1 | . . . . . . . . . . . . . 1 . . . . . . . . . . . . . . . Depthwide Sectors/0 2 | . . . . . . . . . . . . . 1 . . . . . . . . . . . . . . 1 Depthwide Sectors/-1 1 | . . . . . . . . . . . . . . . . . . . 1 . . . . . . . . . Exploration | -11 -10 -10 -9 -9 -8 -7 -7 -7 -7 -7 -6 -6 -6 -6 -6 -6 -5 -5 -5 -4 -4 -4 -4 -3 -3 -2 -1 -1 ------------- Run | Scr Mat Min Mat Min Mat Fac Was Fac Low Zio Pro Fac Ext Cet Arc Hub Fac Was Fac Fac Upp Upp Zhi Pro Res Res Acc Com Turns Passed 12985 | 69 566 676 742 798 1654 134 325 583 599 1025 153 121 896 301 90 197 244 50 158 497 331 178 182 265 158 239 549 1205 Spaces Moved 13997 | 48 392 614 532 651 1124 103 312 398 529 868 191 232 1350 328 65 162 200 130 259 639 426 330 183 529 251 392 1095 1664 Core 592 | 6 . . . . . . . . . . . . . . . . . . . . 245 330 11 . . . . . Treads . | . . . . . . . . . . . . . . . . . . . . . . . . . . . . . Legs . | . . . . . . . . . . . . . . . . . . . . . . . . . . . . . Wheels 6502 | 42 392 614 532 651 1124 103 312 398 529 868 38 . . 59 65 162 171 . 3 174 171 . 94 . . . . . Hover 918 | . . . . . . . . . . . . . . . . . . . . . . . 78 529 251 60 . . Flight 5985 | . . . . . . . . . . . 153 232 1350 269 . . 29 130 256 465 10 . . . . 332 1095 1664 Fastest Speed 20 | 50 80 90 90 96 96 92 92 102 102 110 28 26 26 26 90 90 39 34 39 34 40 50 42 30 42 30 20 20 Average Speed 65 | 76 89 98 94 96 105 93 96 107 106 110 48 26 26 39 90 90 89 34 39 53 65 50 72 40 42 33 24 42 Slowest Speed 574 | 80 110 100 100 96 115 102 102 125 110 110 574 28 108 100 90 90 115 39 90 118 100 50 110 42 43 155 30 187 Overloaded Moves 46 | . . . . . . . . . . . . . . . . . . . . . . . . 46 . . . . Propulsion Burnouts . | . . . . . . . . . . . . . . . . . . . . . . . . . . . . . Robots Hopped 60 | . . . . . . . . . . . 4 1 23 . . . . . 3 2 3 . . . . 2 5 17 Cave-ins Triggered 1 | . . . . . . . . . . . . . . . . . . . . . . . . 1 . . . . Teleports 1 | . . . . . . . . . . . . . . . . . . . . . . . . . . . 1 . Exploration Rate (%) 49 | 4 59 96 43 95 74 3 95 14 78 89 28 9 89 86 84 30 11 67 10 21 63 45 60 74 9 31 14 55 Regions Visited 28 Branch Regions 14 Pre-discovered Areas 24 | . . . 1 . 1 . . . . 2 . . 10 . . . . . 4 . . 1 3 . . . . 2 Known Exits Taken 12 | . . . 1 . . . . 1 . . 1 . . . . 1 . . . 1 1 1 1 1 1 1 1 . Unknown Exits Taken 12 | 1 1 1 . 1 1 . . . 1 1 . 1 1 1 1 . . . 1 . . . . . . . . . Scrap Searched 14 | . . 3 . 1 . . . . 2 2 1 . . . . . . . . . 2 2 . 1 . . . . Spaces Dug 63 | . . . . . 2 . . . . . 3 12 3 . . 1 . . 7 6 . . . 7 8 6 4 4 Terrain Destroyed 311 | . . 43 15 . 17 . . 1 136 . 17 12 6 1 1 1 . . 7 6 5 . . 7 8 6 7 15 Melee 59 | . . . . . 2 . . . . . 3 12 3 . . 1 . . 7 6 . . . 7 8 6 4 . Projectile 29 | . . . . . . . . 1 . . . . 3 1 1 . . . . . 5 . . . . . 3 15 AOE 223 | . . 43 15 . 15 . . . 136 . 14 . . . . . . . . . . . . . . . . . Actions | -11 -10 -10 -9 -9 -8 -7 -7 -7 -7 -7 -6 -6 -6 -6 -6 -6 -5 -5 -5 -4 -4 -4 -4 -3 -3 -2 -1 -1 --------- Run | Scr Mat Min Mat Min Mat Fac Was Fac Low Zio Pro Fac Ext Cet Arc Hub Fac Was Fac Fac Upp Upp Zhi Pro Res Res Acc Com Total 16727 | 74 601 672 678 724 1387 128 341 495 548 941 242 267 1751 457 91 188 251 134 296 767 457 344 220 565 289 486 1335 1998 Wait 1165 | 2 178 33 58 4 76 8 1 53 . 55 15 15 219 59 16 1 10 1 22 32 1 . . 28 6 54 116 102 Move 13865 | 47 391 613 531 650 1123 103 311 397 528 867 183 229 1316 327 64 161 200 129 252 634 420 329 182 527 250 387 1084 1630 Hop 44 | . . . . . . . . . . . 3 1 10 . . . . . 3 2 2 . . . . 2 5 16 Pick Up 338 | 12 17 4 16 6 37 4 12 6 . 9 3 4 21 15 1 3 9 2 5 24 2 7 12 1 11 9 39 47 Fast Attach . | . . . . . . . . . . . . . . . . . . . . . . . . . . . . . Attach 203 | 6 3 1 13 1 11 6 2 4 1 3 7 2 10 15 2 1 6 2 3 15 3 4 13 1 8 3 23 34 Detach 6 | . . . . . . . . . . . . . . 1 1 . . . . 2 2 . . . . . . . Swap 105 | . 2 2 4 6 16 . 2 4 2 1 3 2 12 6 1 2 2 . . 9 2 . . . 2 1 4 20 Drop 196 | 1 4 3 3 6 20 . 13 2 . 6 17 1 17 8 1 2 7 . 1 13 7 4 4 . 3 11 27 15 Fire 432 | 6 6 15 53 18 101 7 . 29 17 . 6 . 28 13 5 4 17 . . . 18 . . . . . 7 82 Melee 211 | . . . . 33 2 . . . . . 3 13 45 13 . 14 . . 10 18 . . 9 7 9 11 24 . Ram 2 | . . 1 . . 1 . . . . . . . . . . . . . . . . . . . . . . . Kick . | . . . . . . . . . . . . . . . . . . . . . . . . . . . . . Crush . | . . . . . . . . . . . . . . . . . . . . . . . . . . . . . Escape Stasis 95 | . . . . . . . . . . . . . 18 . . . . . . 18 . . . 1 . . 6 52 Rewire 57 | . . . . . . . . . . . 2 . 55 . . . . . . . . . . . . . . . Trap . | . . . . . . . . . . . . . . . . . . . . . . . . . . . . . Miscellaneous 8 | . . . . . . . . . . . . . . . . . . . . . . . . . . 8 . . Route ------- -11/Scrapyard -10/Materials (discovered 3 exits: *Mat x2 / [*Min]) -10/Mines (discovered 2 exits: *Mat x2) -9/Materials (discovered 3 exits: *Mat / *Min / [*Sto]) -9/Mines (discovered 2 exits: *Mat x2) -8/Materials (discovered 3 exits: [*Fac x3]) -7/Factory -7/Waste -7/Factory (discovered 3 exits: *Fac / *Low x2) -7/Lower Caves (discovered 2 exits: [*Low] / *Zio) -7/Zion -6/Proximity Caves -6/Factory (discovered 3 exits: Fac x2 / *Ext) -6/Extension (discovered 3 exits: *Fac x2 / *Cet) -6/Cetus (discovered 2 exits: *Fac / *Arc) -6/Archives (discovered 2 exits: *Hub x2) -6/Hub_04(d) -5/Factory -5/Waste -5/Factory -4/Factory (discovered 2 exits: *Res / *Upp) -4/Upper Caves -4/Upper Caves -4/Zhirov -3/Proximity Caves -3/Research -2/Research (discovered 2 exits: *Acc x2) -1/Access (discovered 2 exits: Sur / *Com) -1/Command To Epsilon Eridani History --------- Turn | Location | Event 22 | -11/Scrapyard | Discovered new exit (range 14) 70 | -11/Scrapyard | Entered Materials 109 | -10/Materials | Discovered new exit (range 12) 303 | -10/Materials | Build established: Mutant 531 | -10/Materials | Discovered new exit (range 5) 575 | -10/Materials | Discovered new exit (range 13) 636 | -10/Materials | Entered Mines 643 | -10/Mines | Received a Rocket Launcher from a helpful Derelict 773 | -10/Mines | Discovered new exit (range 16) 839 | -10/Mines | Learned 2 Materials zone layouts 877 | -10/Mines | Assisted by bots powering up and referring to "LRC-V3" 1284 | -10/Mines | Discovered new exit (range 9) 1312 | -10/Mines | Entered Materials 1312 | -9/Materials | Accompanied by 3 allies 1312 | -9/Materials | Evolved 2 slots: Propulsion x1, Utility x1 1313 | -9/Materials | Identified exit to Mines 1575 | -9/Materials | Discovered new exit (range 8) 1969 | -9/Materials | Discovered new exit (range 5) 2054 | -9/Materials | Entered Mines 2118 | -9/Mines | Discovered new exit (range 14) 2304 | -9/Mines | Learned location of 1 exit from Proximity Caves 2477 | -9/Mines | Discovered new exit (range 8) 2503 | -9/Mines | Excavation squad dispatched 2503 | -9/Mines | A large section of the Mines collapsed 2707 | -9/Mines | Learned Materials security intel 2742 | -9/Mines | Met a Derelict who couldn't figure out how to use a Trap Extractor 2852 | -9/Mines | Entered Materials 2852 | -8/Materials | Evolved 2 slots: Utility x2 3267 | -8/Materials | Build established: Hauler-Mutant 3297 | -8/Materials | Discovered new exit (range 10) 3383 | -8/Materials | Repaired Arm. Wheel 3491 | -8/Materials | Discovered new exit (range 5) 3856 | -8/Materials | Discovered new exit (range 10) 4003 | -8/Materials | Lost 4 parts (1n1u2w) 4325 | -8/Materials | Garrison activated, responded to threat 4506 | -8/Materials | Entered Factory 4506 | -7/Factory | Evolved 2 slots: Propulsion x1, Utility x1 4640 | -7/Factory | Sucked down chute 4640 | -7/Factory | Entered Waste 4640 | -7/Waste | The area was eerily silent 4849 | -7/Waste | Found Damper Plating 4902 | -7/Waste | Found Damper Plating 4954 | -7/Waste | Discovered new exit (range 11) 4965 | -7/Waste | Entered Factory 5115 | -7/Factory | Lost 3 parts (2n1u) 5197 | -7/Factory | Discovered new exit (range 4) 5265 | -7/Factory | Fabricated Hacking Suite (x1) 5314 | -7/Factory | Identified exit to Lower Caves 5319 | -7/Factory | Fabricated Lrg. Storage Unit? 5524 | -7/Factory | Build established: Scavenger-Mutant 5548 | -7/Factory | Entered Lower Caves 5673 | -7/Lower Caves | Encountered a Warlord checkpoint 5695 | -7/Lower Caves | Learned 8 Factory zone layouts 5915 | -7/Lower Caves | Discovered new exit (range 15) 6136 | -7/Lower Caves | A Derelict revealed a hidden shortcut to a safe place 6147 | -7/Lower Caves | Entered Zion 6153 | -7/Zion | Build established: Hauler-Mutant 6203 | -7/Zion | Discovered new exit (range 12) 6278 | -7/Zion | System corruption cleaned by Quarantine Array 6442 | -7/Zion | Imprinted 6444 | -7/Zion | Declared Zion's savior 6583 | -7/Zion | Learned location of Quarantine (-2) 6609 | -7/Zion | Learned Factory terminal intel 6738 | -7/Zion | Build established: Messiah-Mutant 6768 | -7/Zion | Gained Derelict followers 6825 | -7/Zion | Received a hallucinogenic algorithm 7000 | -7/Zion | Learned Factory emergency access door positions 7172 | -7/Zion | Entered Proximity Caves 7172 | -6/Proximity Caves | Accompanied by 9 allies 7173 | -6/Proximity Caves | Identified exit to Factory 7205 | -6/Proximity Caves | Attracted the attention of an 0b10 outpost 7325 | -6/Proximity Caves | Entered Factory 7325 | -6/Factory | Evolved 2 slots: Power x1, Propulsion x1 7326 | -6/Factory | Identified exit to Factory 7328 | -6/Factory | Loaded intel: 22 terminal locations 7405 | -6/Factory | Retrieved Zion intel report: Guard Positions 7406 | -6/Factory | Zion Recon squad teleported in 7415 | -6/Factory | Zion Offense Resupply teleported in 7415 | -6/Factory | Discovered new exit (range 16) 7446 | -6/Factory | Entered Extension 7446 | -6/Extension | Accompanied by 3 allies 7448 | -6/Extension | Found Prototype Processor 7449 | -6/Extension | Identified Exp. Targeting Computer 7463 | -6/Extension | Zion Hacker squad teleported in 7465 | -6/Extension | Zion Heavy squad teleported in 7536 | -6/Extension | Retrieved Zion intel report: Prototype Schematics 7570 | -6/Extension | Rescued a captive Derelict 7571 | -6/Extension | Rescued a captive Derelict 7587 | -6/Extension | Build established: Messiah-Sprinter 7596 | -6/Extension | Rescued A7 7675 | -6/Extension | Found Prototype Protection 7676 | -6/Extension | Identified Zio. Weapon Casing 7678 | -6/Extension | Found Prototype Protection 7680 | -6/Extension | Identified Zio. Heavy Carapace 7730 | -6/Extension | Retrieved Zion intel report: Depthwide Sectors/0 7743 | -6/Extension | Rescued a captive Derelict 7744 | -6/Extension | Rescued a captive Derelict 7776 | -6/Extension | Spotted B-75 Beast 7779 | -6/Extension | Spotted B-75 Beast 7800 | -6/Extension | Allies destroyed B-75 Beast 7805 | -6/Extension | Allies destroyed B-75 Beast 7896 | -6/Extension | Disrupted transfer network 7928 | -6/Extension | Discovered exit to Factory (range 16) 7928 | -6/Extension | Discovered new exit (range 16) 7979 | -6/Extension | Retrieved Zion intel report: Active Terminals 8009 | -6/Extension | Rescued a captive Derelict 8010 | -6/Extension | Rescued a captive Derelict 8048 | -6/Extension | Retrieved Zion intel report: Prototype Schematics 8053 | -6/Extension | Rescued a captive Derelict 8055 | -6/Extension | Retrieved Zion intel report: Unaware Analyses 8102 | -6/Extension | Retrieved Zion intel report: Component Stockpiles 8126 | -6/Extension | Retrieved Zion intel report: Emergency Access 8126 | -6/Extension | Retrieved Zion intel report: Active Garrisons 8140 | -6/Extension | Retrieved Zion intel report: Prototype Stockpiles 8146 | -6/Extension | First assault squad dispatched 8147 | -6/Extension | Retrieved Zion intel report: Unaware Analyses 8150 | -6/Extension | Retrieved Zion intel report: Unaware Schematics 8157 | -6/Extension | Rescued a captive Derelict 8158 | -6/Extension | Rescued a captive Derelict 8192 | -6/Extension | Retrieved Zion intel report: Unaware Schematics 8247 | -6/Extension | Found Prototype Processor 8249 | -6/Extension | Identified Exp. Signal Interpreter 8342 | -6/Extension | Entered Cetus 8342 | -6/Cetus | Accompanied by 4 allies 8346 | -6/Cetus | Spotted Cetus Guard 8347 | -6/Cetus | Acquired a Cetus Manufacturing Module code from A7 8348 | -6/Cetus | Spotted Cetus Guard 8357 | -6/Cetus | Destroyed Cetus Guard 8357 | -6/Cetus | Spotted Cetus Guard 8361 | -6/Cetus | Spotted Cetus Guard 8366 | -6/Cetus | Allies destroyed Cetus Guard 8377 | -6/Cetus | Started Cetus Manufacturing Module 8379 | -6/Cetus | Zion Fire squad teleported in 8386 | -6/Cetus | Retrieved Zion intel report: Component Schematics 8397 | -6/Cetus | Allies destroyed Cetus Guard 8401 | -6/Cetus | Allies destroyed Cetus Guard 8402 | -6/Cetus | Manufactured an Enhanced Grunt 8410 | -6/Cetus | Lost 6 parts (1p1n2u2w) 8416 | -6/Cetus | Retrieved Zion intel report: Active Terminals 8427 | -6/Cetus | Manufactured an Enhanced Grunt 8433 | -6/Cetus | Retrieved Zion intel report: Guard Positions 8434 | -6/Cetus | Zion Recon squad teleported in 8452 | -6/Cetus | Manufactured an Enhanced Grunt 8454 | -6/Cetus | Escorted A7 to Cetus Mainframe 8461 | -6/Cetus | Discovered new exit (range 16) 8477 | -6/Cetus | Manufactured an Enhanced Grunt 8487 | -6/Cetus | Spotted Cetus Guard 8494 | -6/Cetus | Allies destroyed Cetus Guard 8494 | -6/Cetus | Spotted Cetus Guard 8499 | -6/Cetus | Spotted Cetus Guard 8499 | -6/Cetus | Spotted Cetus Guard 8502 | -6/Cetus | Manufactured an Enhanced Grunt 8520 | -6/Cetus | Destroyed Cetus Guard 8536 | -6/Cetus | Allies destroyed Cetus Guard 8537 | -6/Cetus | System corruption reached 10% 8540 | -6/Cetus | Allies destroyed Cetus Guard 8543 | -6/Cetus | Scared off Revision 17 8546 | -6/Cetus | Extracted ID and sensor layout for unrecognized location from A7's data core 8573 | -6/Cetus | Lost 5 parts (1p2n2u) 8597 | -6/Cetus | Found Prototype Device 8598 | -6/Cetus | Identified Exp. Thermal Shield 8643 | -6/Cetus | Entered Archives 8643 | -6/Archives | Accompanied by 6 allies 8673 | -6/Archives | Unable to access archive contents 8683 | -6/Archives | Discovered new exit (range 19) 8698 | -6/Archives | Discovered new exit (range 18) 8701 | -6/Archives | Unable to access archive contents 8733 | -6/Archives | Entered Hub_04(d) 8733 | -6/Hub_04(d) | Accompanied by 6 allies 8752 | -6/Hub_04(d) | Zion Light squad teleported in 8783 | -6/Hub_04(d) | Garrison activated, responded to threat 8794 | -6/Hub_04(d) | Build established: Messiah-Mutant 8907 | -6/Hub_04(d) | Discovered exit to Factory (range 8) 8914 | -6/Hub_04(d) | Network Hub disabled 8922 | -6/Hub_04(d) | Found Zio. Weapon Casing 8930 | -6/Hub_04(d) | Entered Factory 8930 | -5/Factory | Accompanied by 3 allies 8930 | -5/Factory | Evolved 2 slots: Propulsion x1, Utility x1 8931 | -5/Factory | Identified exit to Upper Caves 9084 | -5/Factory | Retrieved Zion intel report: Active Terminals 9085 | -5/Factory | Zion Hacker squad teleported in 9104 | -5/Factory | Zion Light squad teleported in 9124 | -5/Factory | Garrison activated, responded to threat 9174 | -5/Factory | Sucked down chute 9174 | -5/Factory | Entered Waste 9184 | -5/Waste | Spotted C-40 Crusher 9187 | -5/Waste | Spotted C-40 Crusher 9189 | -5/Waste | Spotted C-40 Crusher 9197 | -5/Waste | Spotted C-40 Crusher 9201 | -5/Waste | Lost 4 parts (1p2n1u) 9201 | -5/Waste | Discovered new exit (range 15) 9224 | -5/Waste | Entered Factory 9256 | -5/Factory | Repaired Adv. Terrain Scanner 9268 | -5/Factory | Retrieved Zion intel report: Active Terminals 9269 | -5/Factory | Zion Light squad teleported in 9319 | -5/Factory | Retrieved Zion intel report: Depthwide Sectors/-1 9324 | -5/Factory | Spotted B-75 Beast 9334 | -5/Factory | Retrieved Zion intel report: Component Schematics 9337 | -5/Factory | Retrieved Zion intel report: Prototype Stockpiles 9352 | -5/Factory | Allies destroyed B-75 Beast 9367 | -5/Factory | Discovered new exit (range 7) 9382 | -5/Factory | Entered another Factory area 9382 | -4/Factory | Evolved 2 slots: Utility x2 9453 | -4/Factory | Spotted B-86 Titan 9487 | -4/Factory | Found Exp. Signal Interpreter 9533 | -4/Factory | Retrieved Zion intel report: Active Terminals 9534 | -4/Factory | Zion Heavy squad teleported in 9601 | -4/Factory | Zion Heavy squad teleported in 9624 | -4/Factory | Discovered new exit (range 16) 9626 | -4/Factory | Found Zio. Weapon Casing 9651 | -4/Factory | Retrieved Zion intel report: Component Stockpiles 9672 | -4/Factory | Discovered new exit (range 20) 9693 | -4/Factory | Zion Hacker squad teleported in 9723 | -4/Factory | Identified exit to Upper Caves 9879 | -4/Factory | Entered Upper Caves 9961 | -4/Upper Caves | Learned Research security intel 9972 | -4/Upper Caves | Learned Research trap positions 9977 | -4/Upper Caves | Spotted B-86 Titan 10028 | -4/Upper Caves | Lost 3 parts (1n2u) 10047 | -4/Upper Caves | Attracted the attention of an 0b10 outpost 10171 | -4/Upper Caves | Discovered new exit (range 10) 10176 | -4/Upper Caves | Identified exit to Upper Caves 10210 | -4/Upper Caves | Entered another Upper Caves area 10268 | -4/Upper Caves | Attracted the attention of an 0b10 checkpoint 10319 | -4/Upper Caves | Discovered new exit (range 8) 10322 | -4/Upper Caves | Identified exit to Zhirov 10388 | -4/Upper Caves | Entered Zhirov 10388 | -4/Zhirov | Discovered new exit (range 3) 10403 | -4/Zhirov | Met Zhirov 10423 | -4/Zhirov | Learned location of Command (-1) 10432 | -4/Zhirov | Zhirov requested help retrieving the SGEMP Prototype 10452 | -4/Zhirov | Found Alien Artifact 10453 | -4/Zhirov | Identified Integrated Reactor 10453 | -4/Zhirov | Installed Integrated Reactor, increased core energy generation (+2%) 10465 | -4/Zhirov | Found Alien Artifact 10570 | -4/Zhirov | Identified exit to Proximity Caves 10570 | -4/Zhirov | Entered Proximity Caves 10627 | -3/Proximity Caves | Attracted the attention of an 0b10 checkpoint 10714 | -3/Proximity Caves | Crushed by falling debris 10715 | -3/Proximity Caves | System corruption reached 10% 10755 | -3/Proximity Caves | Identified exit to Research 10835 | -3/Proximity Caves | Entered Research 10835 | -3/Research | Evolved 2 slots: Utility x2 10836 | -3/Research | Loaded intel: 86 trap records 10837 | -3/Research | Spotted B-86 Titan 10897 | -3/Research | Retrieved Zion intel report: Active Terminals 10937 | -3/Research | Retrieved Zion intel report: Component Stockpiles 10963 | -3/Research | Retrieved Zion intel report: Emergency Access 10987 | -3/Research | Discovered new exit (range 8) 10993 | -3/Research | Identified exit to Research 10993 | -3/Research | Entered another Research area 10993 | -2/Research | Evolved 2 slots: Propulsion x1, Utility x1 11103 | -2/Research | Spotted B-90 Cyclops 11120 | -2/Research | Zion Heavy squad teleported in 11174 | -2/Research | Discovered new exit (range 79) 11176 | -2/Research | Discovered new exit (range 28) 11212 | -2/Research | Identified exit to Access 11232 | -2/Research | Entered Access 11232 | -1/Access | Accompanied by 1 ally 11232 | -1/Access | Evolved 2 slots: Utility x2 11345 | -1/Access | Build established: Messiah-Sprinter 11407 | -1/Access | Retrieved Zion intel report: Prototype Stockpiles 11417 | -1/Access | Retrieved Zion intel report: Main Access 11417 | -1/Access | Identified exit to Surface 11422 | -1/Access | Retrieved Zion intel report: Prototype Schematics 11423 | -1/Access | Zion Infowar Resupply teleported in 11443 | -1/Access | Zion Light squad teleported in 11465 | -1/Access | Zion Hacking Resupply teleported in 11524 | -1/Access | P-80 Master assimilated allied 6F-XBC(z) 11618 | -1/Access | Spotted B-99 Colossus 11655 | -1/Access | Lost 4 parts (1n1u2w) 11688 | -1/Access | Identified Transdimensional Reconstructor 11688 | -1/Access | Warped through subspace 11691 | -1/Access | Spotted B-99 Colossus 11712 | -1/Access | Spotted B-99 Colossus 11751 | -1/Access | Lost 7 parts (1p2n4u) 11765 | -1/Access | Zion Heavy squad teleported in 11767 | -1/Access | Zion Light squad teleported in 11768 | -1/Access | Discovered new exit (range 9) 11769 | -1/Access | Identified exit to Command 11781 | -1/Access | Entered Command 11781 | -1/Command | Accompanied by 4 allies 11824 | -1/Command | Retrieved Zion intel report: Prototype Stockpiles 11852 | -1/Command | Retrieved Zion intel report: Emergency Access 11886 | -1/Command | Spotted Executioner 11886 | -1/Command | Spotted Executioner 11886 | -1/Command | Spotted Executioner 11886 | -1/Command | Spotted Executioner 11886 | -1/Command | Spotted Striker 11886 | -1/Command | Spotted Striker 11886 | -1/Command | Spotted Alpha 7 11886 | -1/Command | Spotted Alpha 7 11933 | -1/Command | Retrieved Zion intel report: Component Schematics 11940 | -1/Command | Retrieved Zion intel report: Depthwide Sectors/0 11953 | -1/Command | Retrieved Zion intel report: Prototype Schematics 11968 | -1/Command | Retrieved Zion intel report: Unaware Schematics 11977 | -1/Command | Retrieved Zion intel report: Prototype Schematics 11980 | -1/Command | Disengaged cave seal 11980 | -1/Command | Zionites emerged from the dark tunnel 11983 | -1/Command | Allies destroyed Striker 11985 | -1/Command | Lost 5 parts (1p3n1u) 12019 | -1/Command | Retrieved Zion intel report: Prototype Schematics 12074 | -1/Command | Destroyed Alpha 7 12085 | -1/Command | Found Prototype Processor 12086 | -1/Command | Identified Exp. Target Analyzer 12093 | -1/Command | Found Zio. Weapon Casing 12135 | -1/Command | Retrieved Zion intel report: Unaware Schematics 12231 | -1/Command | Spotted B-99 Colossus 12236 | -1/Command | Disengaged cave seal 12258 | -1/Command | Allies destroyed B-99 Colossus 12277 | -1/Command | Lost 3 parts (2u1w) 12303 | -1/Command | Spotted M Guard 12304 | -1/Command | Spotted M Guard 12305 | -1/Command | Spotted Combat Programmer 12305 | -1/Command | Spotted Combat Programmer 12311 | -1/Command | Allies destroyed Combat Programmer 12319 | -1/Command | Destroyed Combat Programmer 12343 | -1/Command | Allies destroyed M Guard 12345 | -1/Command | Allies destroyed M Guard 12345 | -1/Command | Destroyed all MAIN.C guards 12347 | -1/Command | Found Adv. Micro-nuke Launcher 12348 | -1/Command | Found Prototype Device 12349 | -1/Command | Identified Thermal Barrier 12350 | -1/Command | Found Prototype Device 12351 | -1/Command | Identified AEGIS Remote Shield 12364 | -1/Command | Found Prototype Reactor 12391 | -1/Command | Identified Zero-point Reactor 12413 | -1/Command | Found AEGIS Remote Shield 12418 | -1/Command | Found Exp. Targeting Computer 12493 | -1/Command | Retrieved Zion intel report: Unaware Schematics 12637 | -1/Command | Build established: Messiah-Mutant 12725 | -1/Command | Retrieved Zion intel report: Guard Positions 12753 | -1/Command | Found Prototype Device 12754 | -1/Command | Identified EM Disruption Field 12812 | -1/Command | Retrieved Zion intel report: Prototype Schematics 12830 | -1/Command | First assault squad dispatched 12845 | -1/Command | Spotted B-99 Colossus 12893 | -1/Command | Spotted B-99 Colossus 12897 | -1/Command | Allies destroyed Executioner 12898 | -1/Command | Destroyed Executioner 12911 | -1/Command | Lost 8 parts (1p4n3u) 12917 | -1/Command | Allies destroyed B-99 Colossus 12960 | -1/Command | Discovered exit to Surface (range 8) 12986 | *** | Escaped! Last Messages --------------- 12968_ Field strength at 75. 12969_ Field strength at 70. 12970_ Field strength at 65. 12971_ System corrupted: Matter fused (-5). 12971_ Field strength at 60. 12972_ Field strength at 55. 12973_ Field strength at 50. 12974_ Field strength at 45. 12975_ Field strength at 40. 12976_ Field strength at 35. 12977_ Field strength at 30. 12978_ Field strength at 25. 12979_ Field strength at 20. 12980_ Field strength at 15. 12981_ Field strength at 10. 12981_ H5-SN2(Z) triggered Stasis Trap. 12981_ A bubble of rippling energy engulfs the area. 12981_ Field strength at 85. 12982_ Field strength at 5. 12983_ Stasis field depleted. Map ----- +----------------------------------------------------+ | # #?# ############/#######???????????????? | | # #?# ^ # #????????????????????? | | # #?# # =! #????????????????????? | | # #?# + ! #????????????????????? | | # #?# # #????????????????????? | | # #?# # = #????????????????????? | | # #?# =%!# #????????????????????? | | "!!#?# ##########+####????????????????????? | | #[*#?# # #??????????????????????? | | # =#?# # #??????????????????????? | | #[!### + "" "" #??????????????????????? | | #%!%%[ % *%[# ""T"" #??????????????????????? | | # *!%% # """ #??????????????????????? | | # !% # #??????????????????????? | | # ! ##! #??????????????????????? | | # ### ##########??????????????????????? | | # #?###???????????????????????????????? | | # #???????????????###?????????????????? | | # #?????########### ##????????????????? | | # #?????# ####?????????????? | | # ###???# Z # ######????????? | | # #???# Z ^ # # ; #####????? | | # !% #???# Z ^!^ ""####"# | | # % "##???# Z ^^^ ^^" | | # "#????# "" ^ = ^ " | | # ##????# @" / | | # #?????# ^ /!% | | # ! #?????# ^ ^ %""#"""# | | #+####"" ##????# ^^^^ # # #####]== | | #" "#????# ## ## ##???#]== | | ## ##????# #######????#== | | #" #?????###############??????????# | | #" #??????????????????????????????# | | T " #" ##???????####################??# | | ?## "#???????# #??# | | ?#" "######### #??# | | ###?#?## += """" """" #??# | | ??????#" "#########%* """" """" #??####+# | | ??????#" ! " #= """" """" #?????# # | | ??????#"* " # """" """" #?????# # | | ??????## " """" # #####?# # | | ???????# # """" # "#%"###+# | | ???????# " """" #################+## | | ???????# + """" #######???????# # | | ???????# # + ??????# # "" | | ???????# # ####??????????# # """" | | ##?????# # #?????????????# # """" | | ##????# ###/##########?????????## ## | | #????# # #??????????# ##" | | #????# # #??????????# ##"" | +----------------------------------------------------+ Best States ------------- Heat Dissipation 128 Coolant Potential 120 Energy Generation 64 Energy Capacity 1440 Matter Stores 800 Matter Capacity 800 Sight Range 22 Robot Scan Range 16 Terrain Scan Range 20 Terrain Scan Density 210 ECM Strength 3 Jamming Range 12 Cloak Strength 2 Power Amplification 30 Additional Mass Support 25 Base Temperature (-) 200 Armor Coverage 600 Resistance: KI 20 Resistance: TH 50 Resistance: EM 50 Core Shielding 40 Propulsion Shielding 66 Weapon Shielding 100 Phase Shifting 15 Evasion (%) 82 Targeting Accuracy 20 Melee Accuracy 6 Target Analysis 12 Armor Integrity Analysis 66 Offensive Hacking 28 Defensive Hacking 24 Item Schematics ----------------- Lrg. Storage Unit | -10/Materials | Hacked Propulsion Shielding | -10/Materials | Hacked Hacking Suite | -8/Materials | Scanalyzed System Shield | -8/Materials | Scanalyzed Riot Gun | -7/Zion | Free Battle Cannon | -7/Zion | Free Slug Cannon | -7/Zion | Free Enh. Flamer | -7/Zion | Free Ripper | -7/Zion | Free Imp. Cesium-ion Thruster | -6/Extension | Z-intel Biomechanical Wings | -6/Extension | Z-intel Cld. Particle Cannon | -6/Extension | Z-intel Cld. Cesium-ion Thruster | -6/Extension | Z-intel Gravity Neutralizing Apparatus | -6/Extension | Z-intel Exp. Power Shielding | -6/Extension | Z-intel Exp. Utility Shielding | -6/Extension | Z-intel Cold Fusion Reactor | -6/Extension | Z-intel Prc. Shock Rifle | -6/Extension | Z-intel Imp. Airjet | -6/Extension | Z-intel Adv. Beam Rifle | -6/Extension | Z-intel Hvy. Deuterium Engine | -6/Extension | Z-intel Rocket Array | -6/Extension | Z-intel Exp. Targeting Computer | -6/Extension | Z-intel Cld. VTOL Module | -6/Extension | Z-intel Exp. Weapon Shielding | -6/Extension | Z-intel F-cell Engine | -6/Extension | Z-intel Prc. Assault Rifle | -6/Extension | Z-intel Imp. Spread Laser | -6/Extension | Z-intel Maneuvering Thrusters | -6/Cetus | Z-intel Imp. Sensor Array | -6/Cetus | Z-intel Plasma Rifle | -6/Cetus | Z-intel Imp. Heavy Armor Plating | -6/Cetus | Z-intel Arm. Treads | -6/Cetus | Z-intel Hardlight Generator | -6/Cetus | Z-intel Med. Storage Unit | -6/Cetus | Z-intel Chainsword | -6/Cetus | Z-intel Imp. Deuterium Engine | -6/Cetus | Z-intel Core Shielding | -6/Cetus | Z-intel Imp. Target Analyzer | -6/Cetus | Z-intel Lgt. Fission Core | -6/Cetus | Z-intel Hvy. Ion Cannon | -6/Cetus | Z-intel Adv. ECM Suite | -5/Factory | Scanalyzed Lgt. Angular Momentum Engine | -5/Factory | Scanalyzed Adv. Terrain Scanner | -5/Factory | Z-intel Arm. Medium Treads | -5/Factory | Z-intel Imp. Salvage Targeting Computer | -5/Factory | Z-intel Powered Armor | -5/Factory | Z-intel Neutron Cannon | -5/Factory | Z-intel Imp. Field Recycling Unit | -5/Factory | Z-intel Adv. Cooling System | -5/Factory | Z-intel Flexi-carbon Leg | -5/Factory | Z-intel Imp. Maneuvering Thrusters | -5/Factory | Z-intel Field Propulsion Drive | -5/Factory | Z-intel Sml. Matter Pod | -5/Factory | Z-intel Phase Shifter | -5/Factory | Z-intel Adv. Weight Redist. System | -5/Factory | Z-intel Target Analyzer | -5/Factory | Z-intel Assault Drone Bay | -4/Zhirov | Free Exp. Heat Sink | -4/Zhirov | Free Exp. Optical Array | -4/Zhirov | Free Imp. Arc Thrower | -4/Zhirov | Free Imp. VTOL Module | -3/Proximity Caves | Hacked Imp. Matter Compressor | -1/Access | Z-intel Kinetic Spear | -1/Access | Z-intel Exp. Reclamation Unit | -1/Access | Z-intel Energy Mantle | -1/Access | Z-intel Nanosword | -1/Access | Z-intel Hdn. Centrium Heavy Treads | -1/Access | Z-intel Tactical Quantum Warhead | -1/Access | Z-intel Exp. Matter Compressor | -1/Access | Z-intel Adv. Overload Amplifier | -1/Access | Z-intel Hyp. Mass Driver | -1/Command | Z-intel Power Amplifier | -1/Command | Z-intel Tesla Rifle | -1/Command | Z-intel Enh. Nova Cannon | -1/Command | Z-intel Centrium Leg | -1/Command | Z-intel Thermal Shield | -1/Command | Z-intel Adv. Datajack | -1/Command | Z-intel Imp. Remote Datajack | -1/Command | Z-intel System Restoration Module | -1/Command | Z-intel Imp. Antigrav System | -1/Command | Z-intel Imp. Targeting Computer | -1/Command | Z-intel Hvy. Neutron Cannon | -1/Command | Z-intel Energy Filter | -1/Command | Z-intel Exp. Cooling System | -1/Command | Z-intel Beam Splitter | -1/Command | Z-intel Exp. Q-thruster | -1/Command | Z-intel Vibroblade | -1/Command | Z-intel Exp. Field Recycling Unit | -1/Command | Z-intel Exp. Hacking Suite | -1/Command | Z-intel Adv. Matter Compressor | -1/Command | Z-intel Exp. Signal Interpreter | -1/Command | Z-intel Spectral Analyzer | -1/Command | Z-intel Graviton Reactor | -1/Command | Z-intel Exp. Force Field | -1/Command | Z-intel Ragnarok Missile Launcher | -1/Command | Z-intel Point Singularity Launcher | -1/Command | Z-intel Enh. Force Rifle | -1/Command | Z-intel Ionic Axe | -1/Command | Z-intel Com. Mass Driver | -1/Command | Z-intel Exp. Thermal Converter | -1/Command | Z-intel Particle Accelerator | -1/Command | Z-intel Com. Particle Reactor | -1/Command | Z-intel Exp. Melee Analysis Suite | -1/Command | Z-intel Gravity Flail | -1/Command | Z-intel Imp. Lightning Gun | -1/Command | Z-intel Centrium Heavy Treads | -1/Command | Z-intel Exp. Energy Well | -1/Command | Z-intel Plasma Sword | -1/Command | Z-intel Imp. Energy Mantle | -1/Command | Z-intel Adv. Micro-nuke Launcher | -1/Command | Z-intel Adv. Kinecellerator | -1/Command | Z-intel Enh. Gamma Bomb Array | -1/Command | Z-intel Imp. Quantum Reactor | -1/Command | Z-intel Exp. Weapon Cycler | -1/Command | Z-intel Hellfire Missile Launcher | -1/Command | Z-intel System Purifier | -1/Command | Z-intel Hdn. Centrium Wheel | -1/Command | Z-intel Enh. Biometal Leg | -1/Command | Z-intel Molecular Scythe | -1/Command | Z-intel Exp. Shock Absorption System | -1/Command | Z-intel Hvy. Hardcell Cannon | -1/Command | Z-intel Exp. Target Analyzer | -1/Command | Z-intel Exp. Biometal Leg | -1/Command | Z-intel Hvy. Tesla Rifle | -1/Command | Z-intel Imp. Q-thruster | -1/Command | Z-intel Enh. Armored Heavy Treads | -1/Command | Z-intel Exp. Stasis Projector | -1/Command | Z-intel Centrium Greatsword | -1/Command | Z-intel Robot Schematics ------------------ G-50 Soldier | -6/Extension | Z-intel R-06 Scavenger | -6/Extension | Z-intel S-27 Virus | -6/Extension | Z-intel M-28 Smith | -6/Extension | Z-intel R-10 Processor | -6/Extension | Z-intel H-66 Slayer | -6/Extension | Z-intel A-02 Transporter | -6/Extension | Z-intel T-07 Excavator | -6/Extension | Z-intel E-15 Imp | -1/Command | Z-intel K-01 Serf | -1/Command | Z-intel Y-72 Warden | -1/Command | Z-intel G-73 Enforcer | -1/Command | Z-intel C-55 Analyst | -1/Command | Z-intel S-43 Plague | -1/Command | Z-intel C-65 Expert | -1/Command | Z-intel A-15 Conveyor | -1/Command | Z-intel H-88 Terminator | -1/Command | Z-intel Fabricated ------------ Hacking Suite | x1 | -7/Factory Lrg. Storage Unit | x1 | -7/Factory Alien Tech Used ----------------- Integrated Reactor Transdimensional Reconstructor Achievements -------------- None Challenges ------------ None Game ------ Seed CannonOverloadDesublimator Manual? 0 Play Time 03:28:53 Cumulative 292.6 hours Start 2019.12.26 @ 20:18:02 End 2019.12.27 @ 00:36:05 Sessions 1 Manual Loads 0 Difficulty Rogue Special Mode None Game No. 327 Rogue 327 Adventurer 0 Explorer 0 Win Type 0 Total 5 Types 2/1/1/1/0/0/0 Lore% 67 Gallery% 85 Achievement% 64 Wizard Run 0 Options --------- ASCII 0 Keyboard 0 Movement Numpad Keybinds 0 Fullscreen 1 Font 16/Terminus Map View 75x55 Tactical HUD 1 Map Filters NONE Filters NONE Steam 1 RUN: af11322b-627e-475a-aec7-c1b12ba18806